Cogmind - Beta 9.1 @@@ ROGUE MODE // 2019.11.05 @ 08:26:14 Player: Alexbot Result: Destroyed by as-18745 with Assembled F-torch Performance ------------- Evolutions (0) 0 Regions Visited (4) 800 Robots Destroyed (18) 90 Value Destroyed (196) 196 Prototype IDs (22) 440 Alien Tech Used (0) 0 Bonus (300) 300 TOTAL SCORE: 1826 Bonus ------- Aligned with FarCom 300 Cogmind --------- Core Integrity 0/250 Matter 175/300 Energy 195/265 System Corruption 3% Temperature Cool (44) Location -9/Mines Parts ------- Power (1) Improved Ion Engine Propulsion (2) Light Treads Compact Wheel Utility (2) Medium Storage Unit Medium Storage Unit Weapon (2) Shotgun Shotgun Inventory (12) Light Treads Compact Wheel Medium Armor Plating Heavy EM Pulse Gun XL Autogun Array AWS/Autocannon Peak State ------------ Power Light Nuclear Core Propulsion Compact Wheel Compact Wheel Utility Medium Storage Unit Medium Storage Unit Weapon Heavy EM Pulse Gun Shotgun Inventory Light Ion Engine Light Treads Light Treads Medium Laser Shotgun XL Autogun Array AWS/Autocannon [Rating: 18] Favorites ----------- Power Light Ion Engine Engine Light Ion Engine Power Core Light Nuclear Core Propulsion Compact Wheel Treads Light Treads Wheel Compact Wheel Utility Medium Storage Unit Storage Medium Storage Unit Weapon Shotgun Energy Gun Medium Laser Ballistic Gun Shotgun Launcher Rocket Launcher Build | -11 -10 -10 -10 -9 ------- Run | Scr Mat Min Exi Min Slots Evolved . | . . . . . Power . | . . . . . Propulsion . | . . . . . Utility . | . . . . . Weapon . | . . . . . Parts Attached 20 | 6 6 1 3 4 Power 4 | 1 1 . 1 1 Engine 3 | 1 1 . . 1 Core 1 | . . . 1 . Reactor . | . . . . . Propulsion 4 | 2 1 . . 1 Treads 1 | . . . . 1 Leg . | . . . . . Wheel 3 | 2 1 . . . Hover . | . . . . . Flight . | . . . . . Utility 4 | 1 3 . . . Device . | . . . . . Storage 4 | 1 3 . . . Processor . | . . . . . Hackware . | . . . . . Protection . | . . . . . Artifact . | . . . . . Weapon 8 | 2 1 1 2 2 Energy Gun 3 | 1 1 . 1 . Energy Cannon . | . . . . . Ballistic Gun 4 | 1 . 1 1 1 Ballistic Cannon . | . . . . . Launcher 1 | . . . . 1 Special Weapon . | . . . . . Impact Weapon . | . . . . . Slashing Weapon . | . . . . . Piercing Weapon . | . . . . . Special Melee Weapon . | . . . . . Unidentified Prototypes . | . . . . . Parts Lost 4 | . 2 1 . 1 Power 1 | . 1 . . . Propulsion 1 | . 1 . . . Utility . | . . . . . Weapon 2 | . . 1 . 1 Highest Loss Streak 2 | . 2 1 . 1 Average Slot Usage (%) 99 | . 98 100 100 100 Engine 11 | . 13 14 8 10 Core 2 | . . . 5 3 Wheel 27 | . 28 28 28 26 Storage 27 | . 27 28 28 28 Energy Gun 13 | . 14 14 14 7 Ballistic Gun 14 | . 14 14 14 18 Naked Turns . | . . . . . Heaviest Build 29 | 9 22 24 27 29 Greatest Support 32 | 26 32 32 32 32 Greatest Overweight (x) . | . . . . . Average Overweight (x) . | . . . . . Largest Inventory Capacity 12 | 6 12 12 12 12 Average Capacity 11 | 5 10 12 12 12 Most Carried 12 | 4 12 12 12 12 Average Carried 9 | 1 5 11 11 11 Final Capacity 12 | 6 12 12 12 12 Final Carried 12 | 4 12 12 12 11 Class Distribution -------------------- 100% | Mutant Dominant Class ---------------- Mutant | -10/Materials Mutant | -10/Mines Mutant | -10/Exiles Mutant | -9/Mines Resources | -11 -10 -10 -10 -9 ----------- Run | Scr Mat Min Exi Min Matter Collected 418 | 215 107 36 . 60 Remotely . | . . . . . Salvage Created 294 | . 102 86 . 106 Parts 17 | . 9 4 . 4 Haulers Intercepted . | . . . . . Recyclers Shooed 1 | . 1 . . . Parts Field Recycled . | . . . . . Retrieved Matter . | . . . . . Parts Self-Destructed . | . . . . . Prevented . | . . . . . Kills | -11 -10 -10 -10 -9 ------- Run | Scr Mat Min Exi Min Combat Hostiles Destroyed 17 | . 3 2 . 12 Guns 9 | . 3 2 . 4 AOE 8 | . . . . 8 Classes Destroyed 5 | . 3 . . 2 Watcher 1 | . 1 . . . Swarmer 2 | . 2 . . . Grunt 3 | . 1 2 . . Sentry 1 | . . . . 1 Assembled 11 | . . . . 11 Best Kill Streak 10 | . 3 2 . 10 Combat Bots Only 10 | . 3 2 . 10 Max Kills in Single Turn 5 | . 1 1 . 5 Gunslinging . | . . . . . Exploded 5 | . . . . 5 Melee . | . . . . . Uniques/NPCs Destroyed . | . . . . . Combat | -11 -10 -10 -10 -9 -------- Run | Scr Mat Min Exi Min Damage Taken 919 | . 310 177 17 415 Core 256 | . 63 68 . 125 Absorbed by Shields . | . . . . . Core Remaining (%) 100 | 100 . . . . Volleys Fired 45 | . 22 6 2 15 Largest 2 | . 2 2 1 2 Hottest 73 | . 60 73 45 68 Shots Fired 83 | . 43 12 2 26 Gun 79 | . 43 12 2 22 Cannon . | . . . . . Launcher 4 | . . . . 4 Special . | . . . . . Kinetic 47 | . 22 6 . 19 Thermal 27 | . 21 6 . . Explosive 4 | . . . . 4 Electromagnetic 5 | . . . 2 3 Robot Hit Streak 9 | . 6 7 . 9 Robot Miss Streak 6 | . 6 4 . 4 Penetration Max . | . . . . . Secondary Targets 4 | . 2 1 . 1 Max Gunslinging Chain 1 | . 1 1 . 1 Shots Hit Robots 49 | . 23 9 . 17 Core Hits 36 | . 9 5 . 22 Critical Hits 2 | . 1 1 . . Critical Kills 1 | . 1 . . . Critical Parts Destroyed 1 | . . 1 . . Melee Attacks . | . . . . . Impact . | . . . . . Slashing . | . . . . . Piercing . | . . . . . Sneak Attacks . | . . . . . Combat Hostiles . | . . . . . Follow-up Attacks . | . . . . . Damage Inflicted 1044 | . 211 157 . 676 Guns 506 | . 211 157 . 138 Cannons . | . . . . . Explosions 538 | . . . . 538 Melee . | . . . . . Ramming . | . . . . . Kinetic 312 | . 93 93 . 126 Thermal 182 | . 118 64 . . Explosive 538 | . . . . 538 Electromagnetic 12 | . . . . 12 Impact . | . . . . . Slashing . | . . . . . Piercing . | . . . . . Highest Corruption 3 | . . . . 3 Average Corruption 3 | . . . . 3 Corruption Purged . | . . . . . Effects 2 | . . . . 2 Energy Discharges 1 | . . . . 1 Targeting Errors 1 | . . . . 1 Overload Shots . | . . . . . Overflow Damage 46 | . . . . 46 Projectiles . | . . . . . Explosions 46 | . . . . 46 Melee . | . . . . . Knockbacks . | . . . . . Impact . | . . . . . Kinetic . | . . . . . Secondary . | . . . . . Self-Inflicted Damage 137 | . . . . 137 Shots 4 | . . . . 4 Rammed . | . . . . . Targets Rammed . | . . . . . Kicked . | . . . . . Crushed . | . . . . . Highest Temperature 140 | . 83 140 16 45 Average Temperature 44 | . 45 75 10 19 Received Heat Transfer 316 | . 108 99 . 109 Siege Activations . | . . . . . Robots Corrupted . | . . . . . Combat Hostiles . | . . . . . Parts Fried . | . . . . . Impact Corruptions . | . . . . . Robots Melted . | . . . . . Combat Hostiles . | . . . . . Parts Melted . | . . . . . Heat Transferred 460 | . 275 185 . . Parts Sabotaged . | . . . . . Parts Stolen . | . . . . . Parts Stripped . | . . . . . Power Chain Reactions . | . . . . . Missiles Intercepted . | . . . . . Alert | -11 -10 -10 -10 -9 ------- Run | Scr Mat Min Exi Min Peak Influence 75 | . 75 67 . 55 Average Influence 45 | . 44 56 . 38 Maximum Alert Level . | . . . . . Low Security (%) 100 | . . . . . Level 1 . | . . . . . Level 2 . | . . . . . Level 3 . | . . . . . Level 4 . | . . . . . Level 5 . | . . . . . High Security . | . . . . . Max Security . | . . . . . Squads Dispatched 1 | . 1 . . . Investigation 1 | . 1 . . . Extermination . | . . . . . Reinforcement . | . . . . . Assault . | . . . . . Garrison . | . . . . . Intercept . | . . . . . Construction Impeded . | . . . . . Haulers Reinforced . | . . . . . Stealth | -11 -10 -10 -10 -9 --------- Run | Scr Mat Min Exi Min Distress Signals 1 | . 1 . . . Communications Jammed . | . . . . . Distress Signals . | . . . . . Times Spotted 24 | . 9 2 . 13 Peak Tracking Total 10 | . 6 2 9 10 Tactical Retreats 1 | . 1 . . . Traps | -11 -10 -10 -10 -9 ------- Run | Scr Mat Min Exi Min Traps Triggered 1 | . 1 . . . Indirectly . | . . . . . Trap Hack Attempts . | . . . . . Triggered . | . . . . . Disarmed . | . . . . . Reprogrammed . | . . . . . Reused . | . . . . . Traps Extracted . | . . . . . Installed . | . . . . . Triggered . | . . . . . Machines | -11 -10 -10 -10 -9 ---------- Run | Scr Mat Min Exi Min Machines Disabled 2 | . . . 1 1 Max in Single Turn 1 | . . . 1 1 Machines Sabotaged . | . . . . . Garrisons Compromised . | . . . . . Overloaded Fab Kills . | . . . . . Fab Network Shutdowns . | . . . . . Hacking | -11 -10 -10 -10 -9 --------- Run | Scr Mat Min Exi Min Machines Accessed 2 | . 1 . 1 . Terminals 1 | . 1 . . . Fabricators . | . . . . . Repair Stations . | . . . . . Recycling Units . | . . . . . Scanalyzers . | . . . . . Garrison Access . | . . . . . Total Hacks 2 | . 1 . 1 . Successful 2 | . 1 . 1 . Failed . | . . . . . Catastrophic . | . . . . . Database Lockouts . | . . . . . Manual 1 | . . . 1 . Terminals 1 | . 1 . . . Fabricators . | . . . . . Repair Stations . | . . . . . Recycling Units . | . . . . . Scanalyzers . | . . . . . Garrison Access . | . . . . . Terminal Hacks 2 | . 1 . 1 . Branch Access Points 1 | . 1 . . . EX-Prototype ID Bank 1 | . . . 1 . Fabricator Hacks . | . . . . . Repair Station Hacks . | . . . . . Recycling Unit Hacks . | . . . . . Scanalyzer . | . . . . . Garrison Access Hacks . | . . . . . Unauthorized Hacks . | . . . . . Terminals . | . . . . . Fabricators . | . . . . . Repair Stations . | . . . . . Recycling Units . | . . . . . Scanalyzers . | . . . . . Garrison Access . | . . . . . Data Cores Recovered . | . . . . . Used . | . . . . . Hacking Detections . | . . . . . Full Trace Events . | . . . . . Feedback Events . | . . . . . Feedback Blocked . | . . . . . Robot Schematics Acquired . | . . . . . Robots Built . | . . . . . Matter . | . . . . . Time . | . . . . . Total Robot Build Rating . | . . . . . Part Schematics Acquired . | . . . . . Parts Built . | . . . . . Matter . | . . . . . Time . | . . . . . Total Part Build Rating . | . . . . . Parts Repaired . | . . . . . Time . | . . . . . Parts Recycled . | . . . . . Recycled Matter . | . . . . . Retrieved Matter . | . . . . . Retrieved Components . | . . . . . Parts Scanalyzed . | . . . . . Part Schematics Acquired . | . . . . . Parts Damaged . | . . . . . Bothacking | -11 -10 -10 -10 -9 ------------ Run | Scr Mat Min Exi Min Used RIF Installer . | . . . . . Robots Hacked . | . . . . . Non-combat . | . . . . . Combat . | . . . . . Robot Hacks Applied . | . . . . . Relay Couplers Released . | . . . . . Robots Rewired . | . . . . . Allies Hacked . | . . . . . Hacks Repelled . | . . . . . Allies | -11 -10 -10 -10 -9 -------- Run | Scr Mat Min Exi Min Total Allies . | . . . . . Largest Group . | . . . . . Highest-Rated Group . | . . . . . Highest-Rated Ally . | . . . . . Total Orders . | . . . . . Ally Attacks . | . . . . . Total Damage . | . . . . . Kills . | . . . . . Allies Corrupted . | . . . . . Allies Melted . | . . . . . Intel | -11 -10 -10 -10 -9 ------- Run | Scr Mat Min Exi Min Robot Analysis Total . | . . . . . Derelict Logs Recovered . | . . . . . Drone Launches . | . . . . . Drone Recoveries . | . . . . . Exploration | -11 -10 -10 -10 -9 ------------- Run | Scr Mat Min Exi Min Turns Passed 1008 | 53 212 308 342 93 Spaces Moved 828 | 40 136 282 327 43 Core 1 | 1 . . . . Treads . | . . . . . Legs . | . . . . . Wheels 827 | 39 136 282 327 43 Hover . | . . . . . Flight . | . . . . . Fastest Speed 50 | 50 90 100 100 100 Average Speed 98 | 90 95 100 100 100 Slowest Speed 100 | 100 100 100 100 100 Overloaded Moves . | . . . . . Propulsion Burnouts . | . . . . . Robots Hopped . | . . . . . Cave-ins Triggered . | . . . . . Exploration Rate (%) 31 | 3 30 54 61 7 Regions Visited 4 Branch Regions 3 Pre-discovered Areas . | . . . . . Known Exits Taken 1 | . 1 . . . Unknown Exits Taken 3 | 1 . 1 1 . Scrap Searched 1 | . . 1 . . Spaces Dug . | . . . . . Terrain Destroyed 37 | . . . . 37 Melee . | . . . . . Projectile . | . . . . . AOE 37 | . . . . 37 Actions | -11 -10 -10 -10 -9 --------- Run | Scr Mat Min Exi Min Total 939 | 53 179 296 342 69 Wait 13 | 4 . 7 . 2 Move 824 | 39 135 281 326 43 Hop . | . . . . . Pick Up 23 | 4 13 1 3 2 Fast Attach 7 | 6 . . . 1 Attach 5 | . 3 1 . 1 Detach . | . . . . . Swap 8 | . 3 . 3 2 Drop 14 | . 3 . 8 3 Fire 45 | . 22 6 2 15 Melee . | . . . . . Ram . | . . . . . Kick . | . . . . . Crush . | . . . . . Escape Stasis . | . . . . . Rewire . | . . . . . Trap . | . . . . . Miscellaneous . | . . . . . Route ------- -11/Scrapyard -10/Materials (discovered 2 exits: *Min x2) -10/Mines (discovered 3 exits: [*Mat x2] / *Exi) -10/Exiles -9/Mines History --------- Turn | Location | Event 2 | -11/Scrapyard | Met Revision 17 24 | -11/Scrapyard | Discovered new exit (range 16) 54 | -11/Scrapyard | Entered Materials 60 | -10/Materials | Identified exit to Mines 266 | -10/Materials | Entered Mines 315 | -10/Mines | Build established: Mutant 320 | -10/Mines | Discovered new exit (range 12) 347 | -10/Mines | Core integrity fell below 50% 365 | -10/Mines | Discovered new exit (range 13) 569 | -10/Mines | Deemed a non-threat by the Exiles lab entrance 570 | -10/Mines | Discovered new exit (range 5) 574 | -10/Mines | Entered Exiles 598 | -10/Exiles | Met 8R-AWN 614 | -10/Exiles | Met EX-HEX 647 | -10/Exiles | Met EX-BIN 661 | -10/Exiles | Aligned with FarCom system 662 | -10/Exiles | Given EX-Vault access code 698 | -10/Exiles | Opened EX-Vault 708 | -10/Exiles | Found XL Autogun Array 733 | -10/Exiles | Warned to stay clear of 0b10 Research branches 814 | -10/Exiles | Found AWS/Autocannon 864 | -10/Exiles | Met EX-DEC 883 | -10/Exiles | Attacked by the Exiles 908 | -10/Exiles | Discovered new exit (range 10) 916 | -10/Exiles | Stole two prototypes: XL Autogun Array, AWS/Autocannon 916 | -10/Exiles | Entered Mines 917 | -9/Mines | Assembled infested the area 922 | -9/Mines | Assisted by a Guerilla fighting off Assembled 972 | -9/Mines | Core integrity fell below 20% 1004 | -9/Mines | Destroyed 10 combat bots 1009 | -9/Mines | Destroyed by as-18745 with Assembled F-torch Last Messages --------------- 00965_ as-60967 destroyed. 00967_ Destroyed Asb. F-torch. 00967_ Destroyed Asb. Hover Unit. 00967_ as-38424 destroyed. 00967_ as-76217 destroyed. 00969_ as-53309 destroyed. 00971_ Destroyed Asb. Hover Unit. 00972_ Rocket Launcher destroyed. 00972_ System corrupted by crushing effect (+3). 00972_ Knocked back. 00974_ System corrupted: Shotgun targeting data glitched. 00976_ The unstable cave ceiling collapses. 00977_ as-93776 destroyed. 00977_ Switching to secondary target: as-87244. 00982_ The unstable cave ceiling collapses. 00983_ as-87244 destroyed. 00986_ Acquired 6 matter. 00993_ Acquired 2 matter. 01007_ System corrupted: Energy discharge (-92). 01008_ as-56439 destroyed. Map ----- +----------------------------------------------------+ | | | | | | | | | | | | | | | | | | | | | ?????????????????????????????????????????? | | ?????????????????????????????????????????? | | ?????????????????????????????????????????? | | ?????????????????????????????????????????? | | ?????????????????????????????????????????? | | ?????????????????????????????????????????? | | ?????????????????????????????????????????? | | ?????????????????????????????????????????? | | ?????????????????????????????#???????????? | | ?????????????????????????### #???????????? | | ???????????????????????? ##??????????? | | ??????????????????????? #??????????? | | ?????????????????????? % #???????????? | | ?????????????????????# #???????????? | | ???????####?????##### #????????????? | | ???##### ##?####@ !a #????????????????? | | ??##"%## ### # %% ###????????????????? | | ??#""![# # ####??????????????????? | | ??# ! + # #????????????????????? | | ??#[*!=+ # # #????????????????????? | | ??#"*[%# #????????????????????? | | ??##"[## #????????????????????? | | ???####### # #????????????????????? | | ?????????## ##????????????????????? | | ??????????### ###?????????????????????? | | ????????????######???????????????????????? | | ?????????????????????????????????????????? | | ?????????????????????????????????????????? | | ?????????????????????????????????????????? | | ?????????????????????????????????????????? | | ?????????????????????????????????????????? | | ?????????????????????????????????????????? | | ?????????????????????????????????????????? | | ?????????????????????????????????????????? | | ?????????????????????????????????????????? | | ?????????????????????????????????????????? | | ?????????????????????????????????????????? | | ?????????????????????????????????????????? | | ?????????????????????????????????????????? | | ?????????????????????????????????????????? | +----------------------------------------------------+ Best States ------------- Heat Dissipation 25 Energy Generation 14 Energy Capacity 265 Matter Stores 300 Matter Capacity 300 Sight Range 16 Terrain Scan Density 10 Evasion (%) 42 Recoil Reduction 1 Item Schematics ----------------- None Robot Schematics ------------------ None Fabricated ------------ Nothing Alien Tech Used ----------------- None Achievements -------------- None Challenges ------------ None Game ------ Seed MappingEnergyImmobilizer Manual? 0 Play Time 00:21:06 Cumulative 687.3 hours Start 2019.11.04 @ 17:14:15 End 2019.11.05 @ 08:26:14 Sessions 4 Manual Loads 0 Difficulty Rogue Special Mode None Game No. 185 Rogue 185 Adventurer 0 Explorer 0 Win Type - Total 31 Types 23/0/2/3/2/0/1 Lore% 96 Gallery% 97 Achievement% 91 Wizard Run 0 Options --------- ASCII 0 Keyboard 1 Movement Numpad Keybinds 0 Fullscreen 1 Font 18/SmallcapsGlow Map View 76x50 Tactical HUD 1 Map Filters NONE Filters NONE Steam 1 RUN: 1b8a4a48-1235-4119-947e-5bd936c7ebf8